bitfinex-derivatives/quotes_SOLF0:USTF0_20240925
["timestamp","ask_amount","ask_price","bid_price","bid_amount"]
[1727236627028,8.07,151.97,151.94,3.2904]
[1727236631536,8.07,151.97,151.95,3.2903]
[1727236659274,12.7000291,152.05,151.96,8.07]
[1727236659569,8.07,152.02,151.96,8.07]
[1727236660669,8.07,152.02,152.0,3.2891]
[1727236668272,3.2887,152.03,152.0,3.2891]
[1727236668573,8.07,152.04,152.01,3.289]
[1727236670274,11.3585,152.04,152.01,3.289]
[1727236672079,3.2885,152.04,152.01,3.289]
[1727236672282,8.07,152.03,152.01,3.289]
[1727236673371,3.2885,152.04,152.01,3.289]
[1727236673587,3.2877,152.08,152.04,3.2884]
[1727236673773,1.3968,152.11,152.03,8.07]
[1727236674080,8.07,152.06,152.01,8.07]
[1727236674691,8.07,152.06,152.03,3.2884]
[1727236675181,8.07,152.06,152.04,3.2884]
[1727236676685,8.07,152.05,152.03,3.2886]
[1727236676889,8.07,152.05,151.98,1.3428]
[1727236677086,8.07,152.05,151.99,14.78152594]
[1727236677291,8.07,152.05,151.99,8.07]
[1727236677587,3.288,152.06,152.03,3.2886]
[1727236677779,8.07,152.05,152.03,3.2886]
[1727236677985,8.07,152.05,152.0,8.07]
[1727236678885,11.3582,152.05,152.02,3.2888]
[1727236680592,8.07,152.05,152.02,3.2888]
[1727236682588,1.3968,152.11,152.03,8.07]
[1727236682895,8.07,152.1,152.04,8.07]
[1727236683886,3.2874,152.09,152.06,3.2878]
[1727236684591,3.2871,152.1,152.06,3.2878]
[1727236684793,11.3571,152.1,152.06,3.2878]
[1727236687495,3.287,152.11,152.05,8.07]
[1727236687695,11.357,152.11,152.06,8.07]
[1727236688190,1.3125,152.15,152.06,8.07]
[1727236688389,9.0771989,152.14,152.07,8.07]
[1727236688593,8.07,152.14,152.07,8.07]
[1727236688787,11.3564,152.14,152.07,8.07]
[1727236689592,11.3564,152.14,152.1,3.287]
[1727236690601,11.3564,152.14,152.05,1.337]
[1727236690602,8.07,152.15,152.09,8.07]
[1727236690991,8.07,152.13,152.08,8.07]
[1727236691190,8.07,152.12,152.06,8.07]
[1727236692890,11.3568,152.12,152.08,3.2874]
[1727236696296,3.4051,152.21,152.07,8.07]
[1727236696297,3.2865,152.13,152.09,3.2873]
[1727236696594,8.07,152.13,152.09,3.2873]
[1727236696794,3.2869,152.11,152.06,8.07]
[1727236697700,3.2869,152.11,152.07,3.2876]
[1727236698502,3.2869,152.11,152.08,3.2875]
[1727236700598,11.3571,152.1,152.05,9.407]
[1727236700998,8.07,152.1,152.05,9.407]
[1727236701707,11.3574,152.09,152.05,1.337]
[1727236702105,8.07,152.09,152.04,98.40679367]
[1727236702708,3.2877,152.08,152.04,101.69509367]
[1727236703808,3.2877,152.08,152.04,100.38269367]
[1727236704604,3.2877,152.08,152.04,92.31269367]
[1727236706303,3.2877,152.08,152.05,3.2881]
[1727236710417,11.3574,152.09,152.05,3.2881]
[1727236710717,102.0951,152.21,152.06,3.2878]
[1727236710922,11.3572,152.1,152.06,3.2878]
[1727236711111,8.07,152.1,152.06,3.2878]
[1727236712917,3.2873,152.09,152.06,3.2878]
[1727236720021,3.2876,152.08,152.05,3.2882]
[1727236720731,8.07,152.07,152.05,3.2882]
[1727236721028,11.3578,152.07,152.04,1.2941]
[1727236722829,11.3578,152.07,152.04,4.5823]
[1727236726433,3.2871,152.11,152.08,3.2875]
[1727236726733,3.2871,152.11,152.06,8.07]
[1727236727141,3.2871,152.11,152.07,3.2876]
[1727236728133,11.3571,152.11,152.07,3.2876]
[1727236728433,11.3571,152.11,152.08,3.2875]
[1727236731836,3.2871,152.11,152.08,3.2875]
[1727236732043,11.3571,152.11,152.08,3.2875]
[1727236733831,8.07,152.09,152.04,1.2941]
[1727236734240,3.2876,152.08,152.05,3.288]
[1727236734832,3.2876,152.08,152.04,4.5823]
[1727236734833,8.07,152.07,152.04,4.5823]
[1727236735333,8.07,152.07,152.05,3.2881]
[1727236736936,8.07,152.06,152.02,95.81036042]
[1727236737935,8.07,152.06,152.04,3.2884]
[1727236739137,11.358,152.06,152.03,3.2885]
[1727236740039,11.3582,152.05,152.02,91.02916042]
[1727236740230,8.07,152.05,152.02,87.74036042]
[1727236741933,8.07,152.05,152.03,3.2886]
[1727236742133,3.288,152.06,152.03,3.2886]
[1727236742340,11.358,152.06,152.03,3.2886]
[1727236743441,8.07,152.04,152.02,3.2887]
[1727236744736,11.3584,152.04,152.01,3.289]
[1727236745742,8.07,152.02,151.98,1.3193]
[1727236746343,8.07,152.02,151.99,3.2893]
[1727236748443,8.07,152.02,151.98,1.3193]
[1727236748444,8.07,152.0,151.98,3.2897]
[1727236751144,8.07,151.99,151.97,3.2899]
[1727236751642,12.69659618,152.1,151.98,3.2897]
[1727236751846,8.07,152.03,151.97,8.07]
[1727236752039,8.07,152.03,151.98,8.07]
[1727236752241,11.3584,152.04,152.0,8.07]
[1727236753147,8.07,152.04,152.02,3.2887]
[1727236753743,8.07,152.04,152.0,8.07]
[1727236753940,8.07,152.04,152.01,3.289]
[1727236754146,3.2883,152.05,152.01,3.289]
[1727236754352,11.3583,152.05,152.01,3.289]
[1727236755548,3.5146,152.11,152.03,3.2886]
[1727236755845,8.07,152.07,152.01,8.07]
[1727236756442,11.3578,152.07,152.01,8.07]
[1727236756847,3.5146,152.11,152.01,8.07]
[1727236757048,11.3578,152.07,152.01,8.07]
[1727236757650,11.3578,152.07,152.03,3.2884]
[1727236758343,11.3578,152.07,152.04,3.2883]
[1727236759852,2.5767,152.11,152.03,8.07]
[1727236760151,68.81409554,152.13,152.04,8.07]
[1727236760152,8.07,152.1,152.04,8.07]
[1727236760747,11.3573,152.1,152.06,3.2878]
[1727236761247,11.3573,152.1,152.07,3.2877]
[1727236764753,68.81409554,152.13,152.04,8.07]
[1727236764950,68.81409554,152.13,152.08,3.2874]
[1727236765155,8.07,152.11,152.05,8.07]
[1727236765351,11.3571,152.1,152.07,3.2877]
[1727236766849,11.3571,152.1,152.0,2.6087]
[1727236766850,8.07,152.08,152.02,8.07]
[1727236767049,8.07,152.08,152.03,6.71665696]
[1727236767249,8.07,152.08,152.02,8.07]
[1727236767446,8.07,152.08,152.05,3.2881]
[1727236768560,11.3575,152.08,152.05,3.2881]
[1727236769258,8.07,152.08,152.05,3.2881]
[1727236770460,8.07,152.08,152.04,8.07]
[1727236770954,8.07,152.08,152.05,3.288]
[1727236772662,8.07,152.07,152.01,6.71823916]
[1727236772865,8.07,152.07,152.0,2.6087]
[1727236772866,8.07,152.07,152.02,8.07]
[1727236773358,8.07,152.07,152.04,3.2883]
[1727236776874,3.2876,152.08,152.03,8.07]
[1727236777272,11.3576,152.08,152.03,8.07]
[1727236777465,11.3576,152.08,152.05,3.2881]
[1727236777869,8.07,152.08,152.05,3.2881]
[1727236778070,8.07,152.08,152.03,8.07]
[1727236779785,8.07,152.08,152.05,3.288]
[1727236782183,11.3576,152.08,152.05,3.288]
[1727236783474,68.81409554,152.13,152.03,8.07]
[1727236783683,68.81409554,152.13,152.0,2.6087]
[1727236783684,8.07,152.09,152.0,2.6087]
[1727236783984,8.07,152.09,152.03,8.07]
[1727236784182,3.2876,152.08,152.05,3.2882]
[1727236786079,8.07,152.09,152.06,3.288]
[1727236786786,8.07,152.09,152.04,8.07]
[1727236786986,68.81409554,152.13,152.04,8.07]
[1727236787184,3.2873,152.09,152.06,3.2879]
[1727236787487,3.2873,152.09,152.04,8.07]
[1727236788082,3.2873,152.09,152.05,3.288]
[1727236789675,3.2873,152.09,152.04,8.07]
[1727236789676,68.81409554,152.13,152.04,8.07]
[1727236789876,8.07,152.09,152.04,8.07]
[1727236790580,8.07,152.09,152.06,3.2879]
[1727236792988,11.3574,152.09,152.06,3.2879]
[1727236796290,12.67873729,152.16,152.0,2.6087]
[1727236796489,8.07,152.05,152.0,2.6087]
[1727236796895,8.07,152.07,152.01,8.07]
[1727236797095,11.3579,152.07,152.03,3.2884]
[1727236797286,11.3579,152.07,152.01,8.07]
[1727236797995,11.3579,152.07,152.0,2.6087]
[1727236797996,11.3579,152.07,152.02,8.07]
[1727236798897,11.3579,152.07,152.04,3.2884]
[1727236799293,8.07,152.07,152.04,3.2884]
[1727236800490,3.2874,152.09,152.05,3.288]
[1727236800695,11.3574,152.09,152.05,3.288]
[1727236800896,8.07,152.09,152.05,3.288]
[1727236801096,3.2877,152.08,152.04,11.3584]
[1727236801500,12.67873729,152.16,152.06,3.2879]
[1727236801799,8.07,152.1,152.06,3.2879]
[1727236802392,3.2873,152.09,152.06,3.2879]
[1727236803400,3.2873,152.09,152.05,8.07]
[1727236803401,8.07,152.1,152.0,2.6087]
[1727236803700,8.07,152.09,152.02,8.07]
[1727236803898,8.07,152.09,152.04,8.07]
[1727236804389,3.2875,152.08,152.03,8.07]
[1727236804590,8.07,152.09,152.03,8.07]
[1727236804796,8.07,152.09,152.04,8.07]
[1727236805002,8.07,152.11,152.05,8.07]
[1727236805202,3.4033,152.17,152.07,8.07]
[1727236805398,3.2865,152.13,152.09,3.2872]
[1727236805598,3.2865,152.13,152.08,8.07]
[1727236805895,8.07,152.14,152.08,8.07]
[1727236806092,11.3564,152.14,152.1,3.287]
[1727236806298,11.3564,152.14,152.08,8.07]
[1727236807803,11.3564,152.14,152.1,3.287]
[1727236808704,3.4033,152.17,152.08,8.07]
[1727236808905,8.07,152.14,152.08,8.07]
[1727236809201,8.07,152.14,152.1,3.2869]
[1727236809202,11.3563,152.14,152.1,3.2869]
[1727236809404,19.74,152.3,152.11,8.07]
[1727236809597,3.4335,152.24,152.13,8.07]
[1727236809900,3.4335,152.24,152.12,8.07]
[1727236809901,8.07,152.17,152.12,8.07]
[1727236810202,3.4335,152.24,152.08,8.07]
[1727236810203,8.07,152.14,152.08,8.07]
[1727236810596,11.3562,152.14,152.1,3.287]
[1727236811305,11.3565,152.13,152.09,3.2873]
[1727236813207,3.2865,152.13,152.1,3.2871]
[1727236813793,3.2863,152.14,152.11,3.2868]
[1727236814800,3.2862,152.15,152.11,3.2868]
[1727236817104,8.07,152.15,152.08,8.07]
[1727236818602,8.07,152.11,152.07,1.3376]
[1727236818908,8.07,152.11,152.05,9.3983]
[1727236819299,8.07,152.11,152.07,3.2877]
[1727236819300,11.357,152.11,152.07,3.2877]
[1727236820111,8.07,152.11,152.06,3.2879]
[1727236820410,8.07,152.09,152.06,3.2879]
[1727236821000,3.2872,152.1,152.06,3.2879]
[1727236822606,3.2872,152.1,152.07,3.2877]
[1727236823005,3.2872,152.1,152.05,1.3283]
[1727236823006,8.07,152.14,152.09,3.2872]
[1727236823207,8.07,152.14,152.09,11.3572]
[1727236823508,8.07,152.14,152.07,1.3488]
[1727236823509,3.2868,152.12,152.08,8.07]
[1727236823706,3.2868,152.12,152.08,11.3575]
[1727236824508,8.07,152.11,152.07,12.7064]
[1727236825505,8.07,152.11,152.07,4.6364]
[1727236826009,3.2871,152.1,152.07,4.6364]
[1727236826605,3.2871,152.1,152.07,12.7064]
[1727236828915,11.3571,152.1,152.07,1.3488]
[1727236829704,11.3571,152.1,152.06,3.2879]
[1727236829910,8.07,152.1,152.05,1.3283]
[1727236830420,3.2873,152.09,152.05,9.3983]
[1727236831811,3.2873,152.09,152.06,3.2879]
[1727236833404,3.5237,152.17,152.08,8.07]
[1727236833713,8.07,152.14,152.08,8.07]
[1727236834116,3.2871,152.1,152.08,8.07]
[1727236834708,3.2871,152.1,152.07,11.3577]
[1727236838215,3.287,152.11,152.07,11.3577]
[1727236838714,3.287,152.11,152.08,3.2875]
[1727236839112,3.2867,152.12,152.09,3.2873]
[1727236841111,3.2867,152.12,152.07,8.07]
[1727236841319,3.2867,152.12,152.08,3.2874]
[1727236841522,3.2869,152.11,152.08,3.2874]
[1727236842817,3.2872,152.1,152.07,11.3576]
[1727236843211,3.2874,152.09,152.05,4.6163]
[1727236843418,8.07,152.08,152.05,4.6163]
[1727236843814,8.07,152.08,152.05,1.3283]
[1727236844418,3.2879,152.07,152.05,1.3283]
[1727236844621,8.07,152.08,152.05,1.3283]
[1727236845015,11.3577,152.08,152.05,1.3283]
[1727236845631,8.07,152.06,152.03,1.2918]
[1727236846123,3.2883,152.05,152.03,1.2918]
[1727236846322,8.07,152.04,151.99,2.7846]
[1727236846619,3.289,152.01,151.96,12.1420792]
[1727236846917,3.289,152.01,151.97,6.71572043]
[1727236847221,3.289,152.01,151.96,9.4693]
[1727236847821,8.07,152.01,151.96,1.3993]
[1727236848717,3.2895,151.99,151.96,1.3993]
[1727236848923,11.3595,151.99,151.96,1.3993]
[1727236850728,8.07,151.99,151.96,1.3993]
[1727236851227,8.07,151.99,151.95,3.2902]
[1727236851228,11.3595,151.99,151.95,3.2902]
[1727236852526,12.68345724,152.1,151.94,8.07]
[1727236852527,11.3597,151.98,151.94,3.2905]
[1727236853923,8.07,151.95,151.91,1.3852]
[1727236854427,19.74,152.08,151.91,9.4552]
[1727236854428,8.07,151.96,151.91,9.4552]
[1727236855923,11.3601,151.96,151.92,3.2909]
[1727236858122,3.2899,151.97,151.93,8.07]
[1727236859028,3.2907,151.94,151.91,1.3852]
[1727236859223,8.07,151.92,151.88,1.4117]
[1727236859526,11.361,151.92,151.88,1.4117]
[1727236859722,11.361,151.92,151.87,9.4017]
[1727236860123,11.361,151.92,151.88,3.2917]
[1727236860330,8.07,151.92,151.87,1.3317]
[1727236860530,8.07,151.91,151.85,13.31389623]
[1727236860727,8.07,151.9,151.86,3.2921]
[1727236861225,8.07,151.9,151.85,23.29654387]
[1727236861425,8.07,151.88,151.85,1.3105]
[1727236861630,8.07,151.88,151.82,8.07]
[1727236862330,8.07,151.88,151.84,3.2926]
[1727236863531,8.07,151.87,151.84,3.2926]
[1727236865327,11.3621,151.87,151.82,3.2931]
[1727236865630,8.07,151.85,151.82,3.2931]
[1727236866130,8.07,151.85,151.81,3.2933]
[1727236866332,8.07,151.83,151.76,166.7042331]
[1727236866631,11.363,151.83,151.79,3.2936]
[1727236867230,3.4179,151.96,151.82,8.07]
[1727236867528,8.07,151.89,151.84,8.07]
[1727236868533,12.64,151.92,151.82,12.64]
[1727236869040,3.2916,151.9,151.85,3.2925]
[1727236869730,3.2916,151.9,151.86,3.2923]
[1727236870344,3.2917,151.89,151.86,3.2923]
[1727236871631,3.2915,151.9,151.86,3.2923]
[1727236873532,3.2913,151.91,151.87,3.292]
[1727236873731,12.64,151.94,151.84,12.64]
[1727236873937,12.64,151.94,151.84,15.3861]
[1727236874140,3.2913,151.91,151.87,3.2919]
[1727236874436,3.2913,151.91,151.84,15.3861]
[1727236874840,3.2913,151.91,151.87,3.2919]
[1727236875540,3.2916,151.9,151.86,3.2923]
[1727236875741,12.64,151.9,151.86,3.2923]
[1727236876834,3.2917,151.89,151.86,3.2923]
[1727236877835,15.9315,151.9,151.86,3.2923]
[1727236878436,3.2916,151.89,151.86,3.2923]
[1727236882447,3.2916,151.89,151.85,3.2924]
[1727236883247,3.292,151.88,151.85,3.2924]
[1727236884242,3.292,151.88,151.77,2.7951]
[1727236884243,3.2921,151.87,151.78,12.64]
[1727236884448,12.64,151.88,151.78,13.9896]
[1727236884748,3.2926,151.85,151.81,3.2934]
[1727236885348,3.2926,151.85,151.82,3.2931]
[1727236885548,3.2927,151.84,151.78,1.3496]
[1727236886345,3.293,151.83,151.78,1.3496]
[1727236887752,3.293,151.83,151.8,3.2936]
[1727236890449,11.393,151.83,151.8,3.2936]
[1727236893353,8.1,151.81,151.8,3.2936]
[1727236893553,8.1,151.82,151.8,3.2936]
[1727236896354,8.1,151.82,151.79,3.2937]
[1727236896950,11.3932,151.82,151.79,3.2937]
[1727236897254,8.1,151.81,151.79,3.2937]
[1727236897456,1.3488,151.87,151.68,79.04]
[1727236897457,2.133,151.86,151.72,8.1]
[1727236897755,8.1,151.81,151.75,8.1]
[1727236898357,3.2932,151.82,151.74,12.66]
[1727236898557,12.66,151.83,151.74,12.66]
[1727236899158,3.2935,151.81,151.77,3.2941]
[1727236901859,15.9535,151.81,151.77,3.2941]
[1727236902656,12.66,151.79,151.76,3.2944]
[1727236902956,12.66,151.79,151.72,12.66]
[1727236903157,15.9536,151.81,151.77,3.2941]
[1727236903357,12.66,151.81,151.77,3.2941]
[1727236903754,3.2937,151.8,151.76,3.2943]
[1727236903955,3.2937,151.8,151.71,12.66]
[1727236907253,3.2937,151.8,151.77,3.2942]
[1727236907762,15.9534,151.81,151.78,3.294]
[1727236907959,12.66,151.83,151.75,12.66]
[1727236908161,12.66,151.83,151.76,1.3408]
[1727236908463,3.2932,151.82,151.78,3.294]
[1727236908663,3.2932,151.82,151.76,1.3408]
[1727236908858,68.95426974,151.85,151.76,1.3408]
[1727236909064,68.95426974,151.85,151.82,3.2931]
[1727236909263,68.95426974,151.85,151.76,16.6884]
[1727236909558,72.24696974,151.85,151.76,16.6884]
[1727236910760,72.24696974,151.85,151.81,3.2932]
[1727236911659,3.2927,151.85,151.81,3.2932]
[1727236914259,3.2927,151.84,151.8,3.2935]
[1727236917166,12.66,151.86,151.76,16.6884]
[1727236917365,12.66,151.88,151.78,12.66]
[1727236918159,3.2923,151.86,151.78,12.66]
[1727236918364,8.09,151.85,151.8,8.09]
[1727236919065,8.09,151.84,151.79,8.09]
[1727236919762,11.3828,151.84,151.81,3.2932]
[1727236921457,8.09,151.82,151.8,3.2935]
[1727236921665,8.09,151.81,151.76,12.1184]
[1727236922874,8.09,151.81,151.78,3.2939]
[1727236923160,8.09,151.81,151.76,12.1184]
[1727236923366,8.09,151.79,151.78,3.2939]
[1727236923764,8.09,151.79,151.76,1.3408]
[1727236923962,8.09,151.79,151.76,4.6352]
[1727236924371,2.3054,151.91,151.72,9.42089216]
[1727236924372,8.09,151.78,151.72,9.42089216]
[1727236924669,8.09,151.78,151.72,17.51089216]
[1727236925569,8.09,151.78,151.72,10.7999]
[1727236925765,8.09,151.78,151.75,3.2946]
[1727236927175,8.09,151.78,151.74,3.2948]
[1727236927176,11.3841,151.78,151.74,3.2948]
[1727236927470,8.09,151.76,151.74,3.2948]
[1727236928880,8.09,151.76,151.73,3.295]
[1727236929668,8.09,151.76,151.74,3.2949]
[1727236931977,8.09,151.75,151.74,3.2949]
[1727236932178,8.09,151.75,151.73,3.295]
[1727236933273,8.09,151.75,151.74,3.2949]
[1727236935776,8.09,151.78,151.73,8.09]
[1727236936174,8.09,151.77,151.75,3.2946]
[1727236936782,8.09,151.77,151.71,9.3987]
[1727236936979,8.09,151.77,151.74,3.2947]
[1727236938779,8.09,151.76,151.71,9.3987]
[1727236939882,8.09,151.76,151.74,3.2949]
[1727236940880,8.09,151.76,151.73,3.2951]
[1727236941081,8.09,151.76,151.71,9.3987]
[1727236941580,8.09,151.76,151.71,1.3087]
[1727236942586,8.09,151.76,151.73,3.2949]
[1727236944479,8.09,151.76,151.74,3.2949]
[1727236948389,8.09,151.75,151.71,1.3087]
[1727236948987,8.09,151.75,151.72,3.2952]
[1727236950891,11.3847,151.75,151.72,3.2952]
[1727236953288,115.1929282,152.08,151.72,357.74]
[1727236953289,88.61478405,152.02,151.72,357.74]
[1727236953594,1.4073,151.93,151.85,8.09]
[1727236953798,8.09,151.92,151.88,3.2917]
[1727236953990,8.09,151.92,151.87,8.09]
[1727236954692,8.09,151.91,151.87,8.09]
[1727236954999,8.09,151.88,151.83,8.09]
[1727236955186,8.09,151.88,151.82,8.09]
[1727236955392,1.4073,151.93,151.82,8.09]
[1727236955393,8.09,151.87,151.82,8.09]
[1727236955697,8.09,151.87,151.85,3.2923]
[1727236956491,12.64,151.89,151.85,3.2923]
[1727236957286,12.64,151.89,151.77,87.86750274]
[1727236957493,12.64,151.89,151.79,12.64]
[1727236958792,12.64,151.89,151.85,3.2924]
[1727236961395,12.64,151.89,151.86,3.2923]
[1727236969302,3.291,151.92,151.83,12.64]
[1727236969911,14.0473,151.93,151.85,12.64]
[1727236970406,1.4073,151.93,151.85,12.64]
[1727236971606,1.4073,151.93,151.9,3.2914]
[1727236974209,2.0,151.96,151.89,12.64]
[1727236974403,12.64,151.95,151.87,12.64]
[1727236974603,12.64,151.95,151.91,3.291]
[1727236975508,15.9304,151.95,151.91,3.291]
[1727236975710,12.64,151.93,151.84,12.64]
[1727236976414,8.09,151.91,151.9,3.2913]
[1727236977509,8.09,151.92,151.9,3.2913]
[1727236979302,8.09,151.93,151.91,3.2912]
[1727236982803,11.46218464,151.93,151.91,3.2912]
[1727236985906,11.46218464,151.93,151.9,3.2913]
[1727236986100,8.09,151.91,151.9,3.2913]
[1727236989014,8.09,151.92,151.91,3.2912]
[1727236990202,8.09,151.92,151.9,3.2913]
[1727236990413,8.09,151.91,151.9,3.2913]
[1727236990614,8.09,151.91,151.84,10.7601]
[1727236990913,8.09,151.9,151.85,8.09]
[1727236992809,8.09,151.9,151.89,3.2916]
[1727237008126,8.09,151.9,151.84,2.6701]
[1727237008325,8.09,151.87,151.84,2.6701]
[1727237008526,10.09,151.87,151.84,1.3846]
[1727237008829,10.09,151.87,151.85,3.2925]
[1727237009126,13.42365856,151.87,151.84,1.3846]
[1727237009719,2.0,151.87,151.86,11.3823]
[1727237010127,3.29710144,151.92,151.86,8.09]
[1727237010319,3.29710144,151.92,151.9,3.2913]
[1727237011629,10.737,151.94,151.89,8.09]
[1727237012127,14.06506324,151.94,151.91,3.2911]
[1727237013835,8.09,151.92,151.9,3.2914]
[1727237014030,8.09,151.92,151.85,1.2819]
[1727237014230,8.09,151.92,151.87,8.09]
[1727237014628,8.09,151.93,151.87,8.09]
[1727237015235,8.09,151.92,151.89,3.2914]
[1727237016734,8.09,151.91,151.89,3.2914]
[1727237027540,11.3814,151.91,151.85,1.2819]
[1727237027742,8.09,151.89,151.84,1.3846]
[1727237027946,8.09,151.89,151.83,8.09]
[1727237028646,8.09,151.89,151.87,3.2919]
[1727237028849,8.09,151.9,151.84,8.09]
[1727237029053,8.09,151.9,151.82,1.283]
[1727237029344,8.09,151.9,151.87,3.2919]
[1727237030642,11.3815,151.9,151.87,3.2919]
[1727237031453,8.09,151.9,151.87,3.2919]
[1727237031847,8.09,151.9,151.88,3.2918]
[1727237036457,8.09,151.91,151.88,3.2918]
[1727237037860,11.3812,151.91,151.88,3.2918]
[1727237039260,8.09,151.91,151.88,3.2918]
[1727237041562,3.2909,151.93,151.85,8.09]
[1727237041760,11.3809,151.93,151.86,8.09]
[1727237041964,11.3809,151.93,151.87,8.09]
[1727237043167,11.3809,151.93,151.89,3.2915]
[1727237043366,8.09,151.92,151.89,3.2915]
[1727237043763,11.3811,151.92,151.89,3.2915]
[1727237046166,68.88487245,152.0,151.89,8.09]
[1727237046365,8.09,151.96,151.9,8.09]
[1727237046571,3.2904,151.95,151.92,3.2908]
[1727237046963,3.2904,151.95,151.9,8.09]
[1727237047169,11.3804,151.95,151.9,8.09]
[1727237047967,11.3804,151.95,151.91,3.2912]
[1727237048566,8.09,151.93,151.87,1.2876]
[1727237048767,8.09,151.93,151.87,9.3776]
[1727237049265,11.3809,151.93,151.89,3.2915]
[1727237049462,11.3809,151.93,151.87,9.3776]
[1727237049668,12.72176821,151.98,151.92,3.2909]
[1727237049669,8.09,151.96,151.92,3.2909]
[1727237049866,12.72176821,151.98,151.92,8.09]
[1727237050170,20.81176821,151.98,151.92,8.09]
[1727237050365,3.29,151.97,151.93,3.2907]
[1727237051360,11.38,151.97,151.92,11.3809]
[1727237051572,3.2902,151.96,151.92,3.2909]
[1727237051766,8.09,151.95,151.91,8.09]
[1727237052066,11.3806,151.94,151.9,3.2914]
[1727237052272,8.09,151.93,151.88,8.09]
[1727237053070,8.09,151.95,151.89,8.09]
[1727237053866,3.2906,151.94,151.9,3.2914]
[1727237058875,3.2908,151.93,151.89,11.3816]
[1727237059075,8.09,151.93,151.88,8.09]
[1727237059970,3.291,151.92,151.88,8.09]
[1727237060874,3.291,151.92,151.89,3.2916]
[1727237061375,3.291,151.92,151.9,8.09]
[1727237061579,12.71325184,151.99,151.91,3.2911]
[1727237061770,8.09,151.95,151.9,8.09]
[1727237062481,3.2909,151.93,151.9,11.3813]
[1727237063774,8.09,151.97,151.91,11.3812]
[1727237063973,8.09,151.97,151.92,8.09]
[1727237064673,8.09,151.97,151.91,11.3812]
[1727237064874,3.2907,151.94,151.91,8.09]
[1727237068178,8.09,151.98,151.92,11.3809]
[1727237069781,3.2904,151.95,151.92,11.3809]
[1727237070378,3.2904,151.95,151.92,8.09]
[1727237070585,3.2906,151.94,151.91,3.2912]
[1727237071687,3.2908,151.93,151.9,3.2914]
[1727237072079,3.2908,151.93,151.89,11.3816]
[1727237072485,3.2911,151.92,151.88,8.09]
[1727237072785,8.09,151.93,151.88,8.09]
[1727237073888,3.2912,151.91,151.88,11.3818]
[1727237076189,3.2915,151.9,151.88,8.09]
[1727237079992,3.2915,151.9,151.86,12.7355]
[1727237081484,3.2915,151.9,151.85,3.2924]
[1727237081485,8.09,151.9,151.85,3.2924]
[1727237082787,3.2919,151.88,151.85,3.2924]
[1727237085481,8.09,151.88,151.82,1.3018]
[1727237085691,8.09,151.88,151.81,1.3874]
[1727237085883,8.09,151.88,151.82,8.09]